[Event "Late-Titled-Tuesday-Blitz-January-30-2024"]
[Site "Chess.com"]
[Date "2024.01.30"]
[Round "1"]
[White "Iball95"]
[Black "ArchibaldCerveza29"]
[Result "1-0"]
[WhiteElo "2785"]
[BlackElo "2457"]
[TimeControl "180+1"]
[EndTime "14:07:00 PST"]
[Termination "Iball95 won by resignation"]

1. e4 {[%clk 0:03:00.1]} 1... b6 {[%clk 0:02:58.1]} 2. d4 {[%clk 0:03:00.6]}
2... Bb7 {[%clk 0:02:59]} 3. Nc3 {[%clk 0:03:01.1]} 3... g6 {[%clk 0:02:59.7]}
4. Nf3 {[%clk 0:03:00.4]} 4... Bg7 {[%clk 0:03:00.6]} 5. Be2 {[%clk 0:02:59.5]}
5... d6 {[%clk 0:03:00.2]} 6. O-O {[%clk 0:02:59.9]} 6... Nd7 {[%clk 0:03:00.4]}
7. Re1 {[%clk 0:02:55.7]} 7... e6 {[%clk 0:03:00.6]} 8. a4 {[%clk 0:02:54.4]}
8... a6 {[%clk 0:03:00]} 9. Be3 {[%clk 0:02:54.8]} 9... Ne7 {[%clk 0:02:59.8]}
10. Qd2 {[%clk 0:02:55]} 10... h6 {[%clk 0:03:00.4]} 11. Rad1 {[%clk 0:02:52.1]}
11... Qc8 {[%clk 0:02:57.1]} 12. h3 {[%clk 0:02:47.1]} 12... Rb8 {[%clk
0:02:43.5]} 13. Bf1 {[%clk 0:02:22.8]} 13... Nf8 {[%clk 0:02:33.6]} 14. Bf4
{[%clk 0:01:59.7]} 14... g5 {[%clk 0:02:31.9]} 15. Bh2 {[%clk 0:01:59.2]} 15...
Nfg6 {[%clk 0:02:30.1]} 16. Qe3 {[%clk 0:01:50.9]} 16... Ra8 {[%clk 0:02:28.2]}
17. Bc4 {[%clk 0:01:50.7]} 17... Kf8 {[%clk 0:02:27.1]} 18. e5 {[%clk 0:01:47]}
18... d5 {[%clk 0:02:27]} 19. Bd3 {[%clk 0:01:46.5]} 19... c5 {[%clk 0:02:27.1]}
20. Bf1 {[%clk 0:01:41.4]} 20... Nf5 {[%clk 0:02:24.1]} 21. Qd2 {[%clk 0:01:41]}
21... Bc6 {[%clk 0:02:18.7]} 22. b3 {[%clk 0:01:40.2]} 22... Rb8 {[%clk
0:02:16.9]} 23. Ne2 {[%clk 0:01:35.5]} 23... b5 {[%clk 0:02:12.7]} 24. axb5
{[%clk 0:01:35]} 24... Bxb5 {[%clk 0:02:11.7]} 25. dxc5 {[%clk 0:01:33.6]} 25...
Bxe2 {[%clk 0:02:06.2]} 26. Bxe2 {[%clk 0:01:32.5]} 26... Qxc5 {[%clk
0:02:05.5]} 27. Bxa6 {[%clk 0:01:31.6]} 27... Ke7 {[%clk 0:02:00.5]} 28. Bd3
{[%clk 0:01:31.8]} 28... Ngh4 {[%clk 0:01:57.6]} 29. Nxh4 {[%clk 0:01:32.1]}
29... Nxh4 {[%clk 0:01:58.2]} 30. Ra1 {[%clk 0:01:28]} 30... Ra8 {[%clk
0:01:57.5]} 31. Bg3 {[%clk 0:01:27.6]} 31... Ng6 {[%clk 0:01:50.4]} 32. Bxg6
{[%clk 0:01:26.2]} 32... fxg6 {[%clk 0:01:51.3]} 33. Qd3 {[%clk 0:01:26.7]}
33... Kf7 {[%clk 0:01:49.5]} 34. Qf3+ {[%clk 0:01:27.3]} 34... Ke7 {[%clk
0:01:49.1]} 35. Qd3 {[%clk 0:01:26.5]} 35... Kf7 {[%clk 0:01:47.7]} 36. Rxa8
{[%clk 0:01:26.2]} 36... Rxa8 {[%clk 0:01:47.6]} 37. Re3 {[%clk 0:01:27.1]}
37... Qb4 {[%clk 0:00:30]} 38. Kh2 {[%clk 0:01:19.1]} 38... g4 {[%clk
0:00:25.2]} 39. c3 {[%clk 0:01:00.9]} 39... Qxb3 {[%clk 0:00:22.6]} 40. hxg4
{[%clk 0:01:01.5]} 40... Rf8 {[%clk 0:00:05.8]} 41. Rf3+ {[%clk 0:01:00.1]}
41... Kg8 {[%clk 0:00:05.8]} 42. Qxg6 {[%clk 0:00:59.9]} 42... Rxf3 {[%clk
0:00:04.9]} 43. gxf3 {[%clk 0:01:00.8]} 43... Qxc3 {[%clk 0:00:04.9]} 44. Qxe6+
{[%clk 0:01:01.4]} 44... Kh7 {[%clk 0:00:05.8]} 45. Qxd5 {[%clk 0:01:01.1]}
45... Qd2 {[%clk 0:00:05.7]} 46. Qxd2 {[%clk 0:01:00.6]} 1-0

[Event "Late-Titled-Tuesday-Blitz-January-30-2024"]
[Site "Chess.com"]
[Date "2024.01.30"]
[Round "1"]
[White "BigAl"]
[Black "FairChess_on_YouTube"]
[Result "0-1"]
[WhiteElo "2536"]
[BlackElo "3085"]
[TimeControl "180+1"]
[EndTime "14:07:05 PST"]
[Termination "FairChess_on_YouTube won by checkmate"]

1. Nf3 {[%clk 0:02:58.5]} 1... d5 {[%clk 0:02:59.7]} 2. g3 {[%clk 0:02:58.8]}
2... Nf6 {[%clk 0:02:59.4]} 3. Bg2 {[%clk 0:02:59.7]} 3... e6 {[%clk 0:02:59.5]}
4. O-O {[%clk 0:03:00.6]} 4... Be7 {[%clk 0:03:00]} 5. d3 {[%clk 0:03:00.9]}
5... O-O {[%clk 0:03:00.9]} 6. Nbd2 {[%clk 0:03:01.2]} 6... a5 {[%clk
0:03:00.6]} 7. a4 {[%clk 0:03:00.7]} 7... Na6 {[%clk 0:03:00.2]} 8. d4 {[%clk
0:02:43.8]} 8... c5 {[%clk 0:02:55.3]} 9. e3 {[%clk 0:02:39.9]} 9... b6 {[%clk
0:02:53.3]} 10. Ne5 {[%clk 0:02:39.9]} 10... Nb8 {[%clk 0:02:50.5]} 11. f4
{[%clk 0:02:30.3]} 11... Ba6 {[%clk 0:02:49]} 12. Rf2 {[%clk 0:02:30.4]} 12...
Nfd7 {[%clk 0:02:45.7]} 13. Ndf3 {[%clk 0:02:14.2]} 13... Nxe5 {[%clk
0:02:41.4]} 14. Nxe5 {[%clk 0:02:13.4]} 14... f6 {[%clk 0:02:42]} 15. Nf3 {[%clk
0:02:08.9]} 15... Nc6 {[%clk 0:02:42.4]} 16. c3 {[%clk 0:02:09.3]} 16... Rc8
{[%clk 0:02:42.1]} 17. Bh3 {[%clk 0:02:05.6]} 17... f5 {[%clk 0:02:41.9]} 18.
Kh1 {[%clk 0:01:57.6]} 18... Qe8 {[%clk 0:02:40.8]} 19. Ne1 {[%clk 0:01:44.5]}
19... Qg6 {[%clk 0:02:38.6]} 20. Qf3 {[%clk 0:01:38.9]} 20... b5 {[%clk
0:02:29.1]} 21. axb5 {[%clk 0:01:38.1]} 21... Bxb5 {[%clk 0:02:28.9]} 22. Bd2
{[%clk 0:01:38.2]} 22... a4 {[%clk 0:02:29.1]} 23. Rg2 {[%clk 0:01:37.2]} 23...
h5 {[%clk 0:02:23.9]} 24. Rg1 {[%clk 0:01:36.1]} 24... Na5 {[%clk 0:02:23.6]}
25. Ng2 {[%clk 0:01:34.9]} 25... Nb3 {[%clk 0:02:22.3]} 26. Rad1 {[%clk
0:01:34.2]} 26... Bd3 {[%clk 0:02:22.9]} 27. Nh4 {[%clk 0:01:31.5]} 27... Qe8
{[%clk 0:02:22.5]} 28. Bg2 {[%clk 0:01:31.2]} 28... Bc2 {[%clk 0:02:19]} 29. Qe2
{[%clk 0:01:25.2]} 29... Bxd1 {[%clk 0:02:16.3]} 30. Rxd1 {[%clk 0:01:24.9]}
30... g6 {[%clk 0:02:16.4]} 31. Be1 {[%clk 0:01:23.7]} 31... Rb8 {[%clk
0:02:14.9]} 32. Nf3 {[%clk 0:01:23.4]} 32... c4 {[%clk 0:02:13.9]} 33. h3 {[%clk
0:01:21.6]} 33... Bf6 {[%clk 0:02:10]} 34. Bf2 {[%clk 0:01:19.1]} 34... Rf7
{[%clk 0:02:10.3]} 35. Rg1 {[%clk 0:01:18.4]} 35... Rfb7 {[%clk 0:02:10.4]} 36.
g4 {[%clk 0:01:16.9]} 36... hxg4 {[%clk 0:02:09.5]} 37. hxg4 {[%clk 0:01:17.4]}
37... Rh7+ {[%clk 0:02:08.6]} 38. Nh2 {[%clk 0:01:17]} 38... Kf7 {[%clk
0:02:09.2]} 39. gxf5 {[%clk 0:01:13.6]} 39... gxf5 {[%clk 0:02:06.9]} 40. Bf3
{[%clk 0:01:13.3]} 40... Qh8 {[%clk 0:02:06.8]} 41. Rg2 {[%clk 0:01:13.8]} 41...
Nc1 {[%clk 0:02:06.3]} 42. Qc2 {[%clk 0:01:12.4]} 42... Nd3 {[%clk 0:02:06.1]}
43. Qxa4 {[%clk 0:01:12.8]} 43... Rxb2 {[%clk 0:02:04.6]} 44. Qd7+ {[%clk
0:01:12.4]} 44... Be7 {[%clk 0:02:04.6]} 45. Bg1 {[%clk 0:01:08]} 45... Rb1
{[%clk 0:02:04.2]} 46. Bxd5 {[%clk 0:01:02.1]} 46... Qf6 {[%clk 0:01:35.3]} 47.
Bxc4 {[%clk 0:00:48.1]} 47... Ne1 {[%clk 0:01:35.4]} 48. Rg3 {[%clk 0:00:39.2]}
48... Rb2 {[%clk 0:01:09.5]} 49. d5 {[%clk 0:00:24.7]} 49... Rbxh2+ {[%clk
0:01:00.1]} 50. Bxh2 {[%clk 0:00:24.2]} 50... Rxh2+ {[%clk 0:01:01]} 51. Kxh2
{[%clk 0:00:17.1]} 51... Qh4+ {[%clk 0:01:00.6]} 52. Rh3 {[%clk 0:00:16.8]}
52... Qf2+ {[%clk 0:01:00.5]} 53. Kh1 {[%clk 0:00:17.5]} 53... Qg2# {[%clk
0:01:01.4]} 0-1

[Event "Late-Titled-Tuesday-Blitz-January-30-2024"]
[Site "Chess.com"]
[Date "2024.01.30"]
[Round "1"]
[White "xhembulla"]
[Black "ilya2700"]
[Result "1-0"]
[WhiteElo "2638"]
[BlackElo "2316"]
[TimeControl "180+1"]
[EndTime "14:07:08 PST"]
[Termination "xhembulla won on time"]

1. e4 {[%clk 0:03:00.9]} 1... c5 {[%clk 0:02:59.7]} 2. c3 {[%clk 0:02:59]} 2...
e6 {[%clk 0:02:59.6]} 3. d4 {[%clk 0:02:56.9]} 3... d5 {[%clk 0:02:59.7]} 4.
exd5 {[%clk 0:02:57.2]} 4... exd5 {[%clk 0:03:00.6]} 5. Nf3 {[%clk 0:02:57.4]}
5... Nc6 {[%clk 0:03:01.2]} 6. Bd3 {[%clk 0:02:58]} 6... Nf6 {[%clk 0:03:01.3]}
7. O-O {[%clk 0:02:58.4]} 7... Bd6 {[%clk 0:03:00.8]} 8. Re1+ {[%clk 0:02:57.7]}
8... Be6 {[%clk 0:03:00.7]} 9. dxc5 {[%clk 0:02:57.7]} 9... Bxc5 {[%clk
0:03:01.6]} 10. Nbd2 {[%clk 0:02:55.9]} 10... O-O {[%clk 0:02:59.9]} 11. Nb3
{[%clk 0:02:56.3]} 11... Bb6 {[%clk 0:02:59.6]} 12. h3 {[%clk 0:02:56.9]} 12...
h6 {[%clk 0:02:42.5]} 13. Nbd4 {[%clk 0:02:53.3]} 13... Qd7 {[%clk 0:02:40.5]}
14. Nxc6 {[%clk 0:02:47.5]} 14... bxc6 {[%clk 0:02:38.1]} 15. Ne5 {[%clk
0:02:47.9]} 15... Qc7 {[%clk 0:02:32.2]} 16. Bf4 {[%clk 0:02:44.8]} 16... Rfe8
{[%clk 0:02:02.5]} 17. Qf3 {[%clk 0:02:40.8]} 17... Bc5 {[%clk 0:01:47.2]} 18.
Bxh6 {[%clk 0:02:12.7]} 18... Bd6 {[%clk 0:01:02.2]} 19. Bf4 {[%clk 0:02:06.2]}
19... Rab8 {[%clk 0:00:58]} 20. b3 {[%clk 0:02:02.7]} 20... Nd7 {[%clk
0:00:51.8]} 21. Qh5 {[%clk 0:01:57.3]} 21... Nf6 {[%clk 0:00:35.8]} 22. Qh4
{[%clk 0:01:56.4]} 22... c5 {[%clk 0:00:25.7]} 23. Bg3 {[%clk 0:01:51.4]} 23...
Bc8 {[%clk 0:00:13.4]} 24. Ng4 {[%clk 0:01:12.7]} 24... Bxg4 {[%clk 0:00:10.9]}
25. Bxd6 {[%clk 0:01:11]} 25... Qxd6 {[%clk 0:00:09.8]} 26. hxg4 {[%clk
0:01:11.2]} 26... Qf4 {[%clk 0:00:07.4]} 27. f3 {[%clk 0:00:58.7]} 27... c4
{[%clk 0:00:07.4]} 28. bxc4 {[%clk 0:00:50.1]} 28... dxc4 {[%clk 0:00:08.3]} 29.
Bf1 {[%clk 0:00:50.5]} 29... Rxe1 {[%clk 0:00:03.6]} 30. Rxe1 {[%clk 0:00:51.4]}
30... Rb2 {[%clk 0:00:04.2]} 31. Rd1 {[%clk 0:00:39]} 31... g6 {[%clk
0:00:02.2]} 32. Qe1 {[%clk 0:00:36.2]} 32... Rxa2 {[%clk 0:00:01.6]} 33. Rd4
{[%clk 0:00:30.5]} 33... Qc7 {[%clk 0:00:01.5]} 34. Bxc4 {[%clk 0:00:29.2]} 1-0

[Event "Late-Titled-Tuesday-Blitz-January-30-2024"]
[Site "Chess.com"]
[Date "2024.01.30"]
[Round "1"]
[White "kai_nov"]
[Black "Tomytoteph"]
[Result "0-1"]
[WhiteElo "2288"]
[BlackElo "2619"]
[TimeControl "180+1"]
[EndTime "14:07:08 PST"]
[Termination "Tomytoteph won on time"]

1. d4 {[%clk 0:02:58.6]} 1... Nf6 {[%clk 0:02:59.2]} 2. c4 {[%clk 0:02:58.4]}
2... e6 {[%clk 0:02:59.3]} 3. Nc3 {[%clk 0:02:58.2]} 3... Bb4 {[%clk 0:02:59.3]}
4. f3 {[%clk 0:02:58.5]} 4... d5 {[%clk 0:02:47.2]} 5. a3 {[%clk 0:02:58]} 5...
Bxc3+ {[%clk 0:02:46.5]} 6. bxc3 {[%clk 0:02:58.9]} 6... O-O {[%clk 0:02:46.6]}
7. e3 {[%clk 0:02:59.2]} 7... c5 {[%clk 0:02:46.8]} 8. cxd5 {[%clk 0:02:59.3]}
8... Nxd5 {[%clk 0:02:44.8]} 9. Bd2 {[%clk 0:02:59.2]} 9... Nc6 {[%clk
0:02:42.7]} 10. f4 {[%clk 0:02:59.5]} 10... b6 {[%clk 0:02:33.6]} 11. Nf3 {[%clk
0:02:59.6]} 11... Bb7 {[%clk 0:02:33.3]} 12. Bd3 {[%clk 0:02:59.7]} 12... h6
{[%clk 0:02:25.2]} 13. O-O {[%clk 0:02:59.2]} 13... Rc8 {[%clk 0:02:20]} 14. Ne5
{[%clk 0:02:41.6]} 14... Nxe5 {[%clk 0:02:13.6]} 15. fxe5 {[%clk 0:02:42.5]}
15... Qg5 {[%clk 0:02:11.8]} 16. Qe2 {[%clk 0:02:39.3]} 16... Qe7 {[%clk
0:01:57.4]} 17. Rf2 {[%clk 0:02:28.7]} 17... cxd4 {[%clk 0:01:57.4]} 18. cxd4
{[%clk 0:02:28.4]} 18... Nc3 {[%clk 0:01:57.8]} 19. Qg4 {[%clk 0:02:23.1]} 19...
Qg5 {[%clk 0:01:51.7]} 20. Qxg5 {[%clk 0:01:48.5]} 20... hxg5 {[%clk 0:01:52.6]}
21. Raf1 {[%clk 0:00:56.2]} 21... Ne4 {[%clk 0:01:50.2]} 22. Bxe4 {[%clk
0:00:54.6]} 22... Bxe4 {[%clk 0:01:51.1]} 23. Bb4 {[%clk 0:00:54.8]} 23... Bg6
{[%clk 0:01:32.4]} 24. Bxf8 {[%clk 0:00:52.7]} 24... Kxf8 {[%clk 0:01:33.3]} 25.
e4 {[%clk 0:00:39]} 25... Rc4 {[%clk 0:01:29.2]} 26. d5 {[%clk 0:00:39.1]} 26...
Rxe4 {[%clk 0:01:22]} 27. d6 {[%clk 0:00:19.8]} 27... Rxe5 {[%clk 0:01:18.9]}
28. Rc1 {[%clk 0:00:17.6]} 28... Ke8 {[%clk 0:01:13.4]} 29. Rd2 {[%clk
0:00:17.1]} 29... Rc5 {[%clk 0:01:13.2]} 30. Rxc5 {[%clk 0:00:14.6]} 30... bxc5
{[%clk 0:01:14.1]} 31. Kf2 {[%clk 0:00:14.6]} 31... Kd7 {[%clk 0:01:14.3]} 32.
Ke3 {[%clk 0:00:14.4]} 32... f5 {[%clk 0:01:07.1]} 33. g3 {[%clk 0:00:14.7]}
33... e5 {[%clk 0:01:07.1]} 34. Rd5 {[%clk 0:00:12.4]} 34... f4+ {[%clk
0:01:05.6]} 35. gxf4 {[%clk 0:00:12.6]} 35... exf4+ {[%clk 0:01:05.9]} 36. Kf3
{[%clk 0:00:11.7]} 36... Bh5+ {[%clk 0:01:05.8]} 37. Ke4 {[%clk 0:00:10]} 37...
f3 {[%clk 0:01:04.6]} 38. Ke3 {[%clk 0:00:07.8]} 38... g6 {[%clk 0:01:03.5]} 39.
Rxc5 {[%clk 0:00:06.1]} 39... Kxd6 {[%clk 0:01:03.9]} 40. Ra5 {[%clk 0:00:06.3]}
40... g4 {[%clk 0:00:58.6]} 41. Rxa7 {[%clk 0:00:05.7]} 41... Kc6 {[%clk
0:00:59.5]} 42. Ra5 {[%clk 0:00:05.2]} 42... Kb6 {[%clk 0:00:59.8]} 43. Ra4
{[%clk 0:00:05.1]} 43... Kb5 {[%clk 0:01:00.1]} 44. Ra8 {[%clk 0:00:04.5]} 44...
Kb6 {[%clk 0:00:57]} 45. Rd8 {[%clk 0:00:02.3]} 45... Kb7 {[%clk 0:00:57.9]} 46.
Rd4 {[%clk 0:00:02.2]} 46... Kb6 {[%clk 0:00:58.4]} 47. Rb4+ {[%clk 0:00:02.3]}
47... Ka5 {[%clk 0:00:58.6]} 48. Rf4 {[%clk 0:00:02.1]} 48... Ka6 {[%clk
0:00:58.6]} 49. Rd4 {[%clk 0:00:01.1]} 49... Ka5 {[%clk 0:00:55.7]} 0-1

[Event "Late-Titled-Tuesday-Blitz-January-30-2024"]
[Site "Chess.com"]
[Date "2024.01.30"]
[Round "1"]
[White "bazar-wokzal"]
[Black "norwaytoadog"]
[Result "1-0"]
[WhiteElo "2606"]
[BlackElo "2249"]
[TimeControl "180+1"]
[EndTime "14:07:13 PST"]
[Termination "bazar-wokzal won on time"]

1. e4 {[%clk 0:02:58.4]} 1... c5 {[%clk 0:02:55.6]} 2. c3 {[%clk 0:02:58]} 2...
d5 {[%clk 0:02:55.2]} 3. exd5 {[%clk 0:02:53.9]} 3... Qxd5 {[%clk 0:02:55.2]} 4.
d4 {[%clk 0:02:53.6]} 4... Nc6 {[%clk 0:02:54.3]} 5. Nf3 {[%clk 0:02:53.4]} 5...
Bg4 {[%clk 0:02:54.5]} 6. dxc5 {[%clk 0:02:51.6]} 6... Qxd1+ {[%clk 0:02:49.9]}
7. Kxd1 {[%clk 0:02:51.2]} 7... e6 {[%clk 0:02:50.2]} 8. b4 {[%clk 0:02:50.5]}
8... a5 {[%clk 0:02:49.3]} 9. Bb5 {[%clk 0:02:49.1]} 9... Ne7 {[%clk 0:02:43.7]}
10. Bd2 {[%clk 0:02:28.3]} 10... O-O-O {[%clk 0:02:31.2]} 11. Kc2 {[%clk
0:02:09.5]} 11... axb4 {[%clk 0:02:08.4]} 12. Bxc6 {[%clk 0:01:57.2]} 12... Nxc6
{[%clk 0:02:02]} 13. cxb4 {[%clk 0:01:53.6]} 13... Bxf3 {[%clk 0:02:01.6]} 14.
gxf3 {[%clk 0:01:53.6]} 14... Nd4+ {[%clk 0:02:00]} 15. Kb2 {[%clk 0:01:48.5]}
15... Nxf3 {[%clk 0:01:36.6]} 16. Bc3 {[%clk 0:01:47.9]} 16... e5 {[%clk
0:01:35.6]} 17. Na3 {[%clk 0:01:46.8]} 17... Be7 {[%clk 0:01:33.5]} 18. Nc4
{[%clk 0:01:46.1]} 18... Bf6 {[%clk 0:01:20.3]} 19. Nd6+ {[%clk 0:01:36.8]}
19... Rxd6 {[%clk 0:01:04.2]} 20. cxd6 {[%clk 0:01:37.7]} 20... Kd7 {[%clk
0:01:04.5]} 21. Rad1 {[%clk 0:01:36.2]} 21... Rc8 {[%clk 0:01:02]} 22. Kb3
{[%clk 0:01:23.1]} 22... Nd4+ {[%clk 0:00:46.4]} 23. Bxd4 {[%clk 0:01:22.4]}
23... exd4 {[%clk 0:00:46.7]} 24. Rc1 {[%clk 0:01:18.5]} 24... Re8 {[%clk
0:00:45.1]} 25. Rc7+ {[%clk 0:01:16.7]} 25... Kxd6 {[%clk 0:00:44.6]} 26. Rxb7
{[%clk 0:01:15.4]} 26... Re2 {[%clk 0:00:44.7]} 27. a4 {[%clk 0:01:02.6]} 27...
d3 {[%clk 0:00:42.7]} 28. Rd1 {[%clk 0:00:55.7]} 28... d2 {[%clk 0:00:34.6]} 29.
Kc2 {[%clk 0:00:51.7]} 29... Bg5 {[%clk 0:00:34.4]} 30. Rxf7 {[%clk 0:00:50.8]}
30... Re4 {[%clk 0:00:15.5]} 31. Rxg7 {[%clk 0:00:45.6]} 31... h6 {[%clk
0:00:12.7]} 32. Rg6+ {[%clk 0:00:26.9]} 32... Kd5 {[%clk 0:00:08.5]} 33. Rb6
{[%clk 0:00:26.2]} 33... Kc4 {[%clk 0:00:06.8]} 34. a5 {[%clk 0:00:24.5]} 34...
Re1 {[%clk 0:00:05]} 35. a6 {[%clk 0:00:21.7]} 1-0

[Event "Late-Titled-Tuesday-Blitz-January-30-2024"]
[Site "Chess.com"]
[Date "2024.01.30"]
[Round "1"]
[White "marcodobrikov"]
[Black "icychess54"]
[Result "1-0"]
[WhiteElo "2602"]
[BlackElo "2231"]
[TimeControl "180+1"]
[EndTime "14:07:13 PST"]
[Termination "marcodobrikov won by resignation"]

1. c4 {[%clk 0:02:50.3]} 1... c6 {[%clk 0:02:59.8]} 2. e4 {[%clk 0:02:40.2]}
2... d5 {[%clk 0:02:59.8]} 3. exd5 {[%clk 0:02:41.1]} 3... cxd5 {[%clk
0:03:00.1]} 4. d4 {[%clk 0:02:42]} 4... Nf6 {[%clk 0:02:59.4]} 5. Nf3 {[%clk
0:02:42.1]} 5... Nc6 {[%clk 0:02:59.4]} 6. Nc3 {[%clk 0:02:42.6]} 6... Bg4
{[%clk 0:02:56.3]} 7. Be3 {[%clk 0:02:39.4]} 7... e6 {[%clk 0:02:55.4]} 8. h3
{[%clk 0:02:37.9]} 8... Bxf3 {[%clk 0:02:42.1]} 9. Qxf3 {[%clk 0:02:38.8]} 9...
Be7 {[%clk 0:02:39.4]} 10. cxd5 {[%clk 0:02:30.5]} 10... Nxd5 {[%clk 0:02:38.7]}
11. Bc4 {[%clk 0:02:30.2]} 11... Nxc3 {[%clk 0:02:30]} 12. bxc3 {[%clk
0:02:30.6]} 12... O-O {[%clk 0:02:30.8]} 13. O-O {[%clk 0:02:31.1]} 13... Rc8
{[%clk 0:02:26.6]} 14. Rab1 {[%clk 0:02:29.6]} 14... b6 {[%clk 0:02:16.8]} 15.
Ba6 {[%clk 0:02:28.3]} 15... Rc7 {[%clk 0:02:13.2]} 16. Rfd1 {[%clk 0:02:22.9]}
16... Na5 {[%clk 0:02:11.2]} 17. d5 {[%clk 0:02:16.4]} 17... Qd6 {[%clk
0:01:46.7]} 18. dxe6 {[%clk 0:01:59.2]} 18... Qxe6 {[%clk 0:01:47.6]} 19. Bf4
{[%clk 0:01:51.8]} 19... Rc5 {[%clk 0:01:33.4]} 20. Re1 {[%clk 0:01:50.8]} 20...
Qf6 {[%clk 0:01:32.2]} 21. Qg3 {[%clk 0:01:48.9]} 21... Rxc3 {[%clk 0:01:29.6]}
22. Qh2 {[%clk 0:01:40.2]} 22... Bc5 {[%clk 0:01:24.8]} 23. Re2 {[%clk
0:01:39.9]} 23... Rd8 {[%clk 0:01:08]} 24. Be5 {[%clk 0:01:33.6]} 24... Qg6
{[%clk 0:01:08.1]} 25. Bxc3 {[%clk 0:01:26.3]} 25... Qxb1+ {[%clk 0:01:07.2]}
26. Re1 {[%clk 0:01:27]} 26... Bxf2+ {[%clk 0:00:57.4]} 27. Kxf2 {[%clk
0:01:23.4]} 27... Qc2+ {[%clk 0:00:58]} 28. Kg1 {[%clk 0:01:14.9]} 28... Qxc3
{[%clk 0:00:57.8]} 29. Rf1 {[%clk 0:01:15.8]} 29... Qd4+ {[%clk 0:00:52.2]} 30.
Kh1 {[%clk 0:01:15.9]} 30... Qd6 {[%clk 0:00:51.6]} 31. Qg1 {[%clk 0:01:16]}
31... Qd4 {[%clk 0:00:44]} 32. Qh2 {[%clk 0:01:16.3]} 32... Qd6 {[%clk
0:00:43.7]} 33. Qg1 {[%clk 0:01:16.4]} 33... Re8 {[%clk 0:00:37.8]} 34. Qf2
{[%clk 0:01:14.3]} 34... Qe6 {[%clk 0:00:34.4]} 35. Bb5 {[%clk 0:01:10.6]} 35...
Rd8 {[%clk 0:00:31.6]} 36. a4 {[%clk 0:01:09.2]} 36... h5 {[%clk 0:00:29.6]} 37.
Qf3 {[%clk 0:01:09]} 37... g6 {[%clk 0:00:29.9]} 38. Qc3 {[%clk 0:01:05.7]}
38... Qd6 {[%clk 0:00:26.9]} 39. Qf3 {[%clk 0:00:56.4]} 39... Qd5 {[%clk
0:00:26.7]} 40. Qf6 {[%clk 0:00:55.9]} 40... Rd6 {[%clk 0:00:24.4]} 41. Qe7
{[%clk 0:00:54.6]} 41... Qe6 {[%clk 0:00:23.1]} 42. Qxa7 {[%clk 0:00:53]} 42...
Rd2 {[%clk 0:00:20.6]} 43. Qa8+ {[%clk 0:00:51.1]} 43... Kg7 {[%clk 0:00:19.9]}
44. Be8 {[%clk 0:00:49]} 44... Rf2 {[%clk 0:00:15.3]} 45. Rg1 {[%clk 0:00:41.7]}
45... h4 {[%clk 0:00:14.8]} 46. Bb5 {[%clk 0:00:41.1]} 46... Rf3 {[%clk
0:00:13]} 47. Qxf3 {[%clk 0:00:40.5]} 1-0

[Event "Late-Titled-Tuesday-Blitz-January-30-2024"]
[Site "Chess.com"]
[Date "2024.01.30"]
[Round "1"]
[White "sari07"]
[Black "TanitoluwaAps116"]
[Result "0-1"]
[WhiteElo "2405"]
[BlackElo "2704"]
[TimeControl "180+1"]
[EndTime "14:07:15 PST"]
[Termination "TanitoluwaAps116 won on time"]

1. d4 {[%clk 0:03:00.9]} 1... Nf6 {[%clk 0:02:59.6]} 2. Bf4 {[%clk 0:03:00]}
2... e6 {[%clk 0:02:59]} 3. e3 {[%clk 0:02:54.5]} 3... d5 {[%clk 0:02:55.7]} 4.
Nd2 {[%clk 0:02:49]} 4... Bd6 {[%clk 0:02:55.1]} 5. Bg3 {[%clk 0:02:46.6]} 5...
c5 {[%clk 0:02:51.9]} 6. c3 {[%clk 0:02:43.3]} 6... Qc7 {[%clk 0:02:48]} 7. Ngf3
{[%clk 0:02:42.5]} 7... Nbd7 {[%clk 0:02:45.1]} 8. Bd3 {[%clk 0:02:34.7]} 8...
e5 {[%clk 0:02:44.8]} 9. dxe5 {[%clk 0:02:28.9]} 9... Nxe5 {[%clk 0:02:45.7]}
10. Nxe5 {[%clk 0:02:28.7]} 10... Bxe5 {[%clk 0:02:46.6]} 11. Nf3 {[%clk
0:02:28]} 11... Bxg3 {[%clk 0:02:41.8]} 12. hxg3 {[%clk 0:02:28.9]} 12... O-O
{[%clk 0:02:37.3]} 13. Qc2 {[%clk 0:02:11.2]} 13... h6 {[%clk 0:02:36]} 14.
O-O-O {[%clk 0:02:06.7]} 14... Bg4 {[%clk 0:02:35.7]} 15. Rh4 {[%clk 0:02:01.7]}
15... Qc8 {[%clk 0:02:17.8]} 16. Rxg4 {[%clk 0:01:01.9]} 16... Qxg4 {[%clk
0:01:58.9]} 17. Bf5 {[%clk 0:01:01.6]} 17... Qh5 {[%clk 0:01:58.7]} 18. Ne5
{[%clk 0:00:32.1]} 18... Rae8 {[%clk 0:01:47.4]} 19. f4 {[%clk 0:00:31.2]} 19...
g6 {[%clk 0:01:34.7]} 20. g4 {[%clk 0:00:27.3]} 20... Qh4 {[%clk 0:01:16.7]} 21.
Bxg6 {[%clk 0:00:23.1]} 21... Rxe5 {[%clk 0:01:03.4]} 22. fxe5 {[%clk
0:00:21.8]} 22... Nxg4 {[%clk 0:01:03.5]} 23. e6 {[%clk 0:00:12.3]} 23... fxe6
{[%clk 0:00:38]} 24. Be8 {[%clk 0:00:11.1]} 24... Qg5 {[%clk 0:00:25.9]} 25.
Qg6+ {[%clk 0:00:10.3]} 25... Qxg6 {[%clk 0:00:22.4]} 26. Bxg6 {[%clk
0:00:11.2]} 26... Nxe3 {[%clk 0:00:21.3]} 27. Re1 {[%clk 0:00:11.6]} 27... Rf1
{[%clk 0:00:17.5]} 28. Rxf1 {[%clk 0:00:11.5]} 28... Nxf1 {[%clk 0:00:18.4]} 29.
Bd3 {[%clk 0:00:05.6]} 29... Ng3 {[%clk 0:00:18.6]} 30. Bb5 {[%clk 0:00:04.8]}
30... Kg7 {[%clk 0:00:18.4]} 31. Kd2 {[%clk 0:00:05]} 31... Kf6 {[%clk
0:00:18.3]} 32. Ke3 {[%clk 0:00:05.4]} 32... Nf5+ {[%clk 0:00:18.2]} 33. Kf3
{[%clk 0:00:04.6]} 33... b6 {[%clk 0:00:16.6]} 34. a4 {[%clk 0:00:03.8]} 34...
a5 {[%clk 0:00:16.7]} 35. Bc6 {[%clk 0:00:03.2]} 35... Nd6 {[%clk 0:00:15.1]}
36. Bd7 {[%clk 0:00:02.9]} 36... Nc4 {[%clk 0:00:14.6]} 37. b3 {[%clk
0:00:01.2]} 37... Ne5+ {[%clk 0:00:14.9]} 0-1